[Event "Titled Tuesday Blitz July 25 Early 2023"]
[White "Thecourseoisildur"]
[Black "Williams, Simon K"]
[BlackFideId "404454"]
[WhiteElo "2569"]
[BlackElo "2724"]
[Result "0-1"]
[Round "11"]
[TimeControl "180+2"]
[Date "2023.07.25"]
[WhiteClock "0:00:00"]
[BlackClock "0:00:17"]
[Board "44"]

1. d4 {[%clk 0:03:00]}  Nf6 {[%clk 0:02:58]} 2. c4 {[%clk 0:03:01]}  g6 {[%clk 0:02:57]} 3. Nc3 {[%clk 0:03:01]}  Bg7 {[%clk 0:02:58]} 4. e4 {[%clk 0:03:00]}  d6 {[%clk 0:02:58]} 5. Be2 {[%clk 0:03:01]}  O-O {[%clk 0:02:57]} 6. h4 {[%clk 0:03:01]}  c5 {[%clk 0:02:53]} 7. d5 {[%clk 0:03:01]}  e6 {[%clk 0:02:51]} 8. h5 {[%clk 0:03:02]}  exd5 {[%clk 0:02:51]} 9. exd5 {[%clk 0:03:02]}  Re8 {[%clk 0:02:50]} 10. h6 {[%clk 0:03:02]}  Bh8 {[%clk 0:02:50]} 11. Bg5 {[%clk 0:03:03]}  Nbd7 {[%clk 0:02:47]} 12. Nf3 {[%clk 0:02:51]}  Qb6 {[%clk 0:02:41]} 13. Qc2 {[%clk 0:02:50]}  Ne5 {[%clk 0:02:38]} 14. Nxe5 {[%clk 0:02:50]}  Rxe5 {[%clk 0:02:38]} 15. Bf4 {[%clk 0:02:50]}  Bf5 {[%clk 0:02:37]} 16. Qb3 {[%clk 0:02:46]}  Ree8 {[%clk 0:02:18]} 17. Qxb6 {[%clk 0:02:42]}  axb6 {[%clk 0:02:17]} 18. Bxd6 {[%clk 0:02:43]}  Ne4 {[%clk 0:02:17]} 19. Nxe4 {[%clk 0:02:37]}  Bxe4 {[%clk 0:02:17]} 20. Kd2 {[%clk 0:02:14]}  Bxb2 {[%clk 0:02:13]} 21. Bc7 {[%clk 0:02:12]}  Ra3 {[%clk 0:02:01]} 22. d6 {[%clk 0:01:20]}  Bc3+ {[%clk 0:01:58]} 23. Kc1 {[%clk 0:01:08]}  Bf5 {[%clk 0:01:53]} 24. Bd3 {[%clk 0:00:54]}  Bd2+ {[%clk 0:01:16]} 25. Kxd2 {[%clk 0:00:51]}  Rxd3+ {[%clk 0:01:16]} 26. Kc1 {[%clk 0:00:51]}  Re2 {[%clk 0:01:10]} 27. Bxb6 {[%clk 0:00:15]}  Rxd6 {[%clk 0:00:54]} 28. Bxc5 {[%clk 0:00:15]}  Rc6 {[%clk 0:00:53]} 29. Be3 {[%clk 0:00:14]}  Rxc4+ {[%clk 0:00:52]} 30. Kd1 {[%clk 0:00:14]}  Rb2 {[%clk 0:00:47]} 31. Rc1 {[%clk 0:00:09]}  Rxc1+ {[%clk 0:00:45]} 32. Bxc1 {[%clk 0:00:09]}  Rxf2 {[%clk 0:00:40]} 33. Bd2 {[%clk 0:00:06]}  Rxg2 {[%clk 0:00:34]} 34. Re1 {[%clk 0:00:06]}  Be6 {[%clk 0:00:34]} 35. Re5 {[%clk 0:00:04]}  Kf8 {[%clk 0:00:32]} 36. Rb5 {[%clk 0:00:03]}  Ke7 {[%clk 0:00:30]} 37. Rxb7+ {[%clk 0:00:03]}  Kd6 {[%clk 0:00:30]} 38. a4 {[%clk 0:00:04]}  Rg1+ {[%clk 0:00:30]} 39. Kc2 {[%clk 0:00:03]}  Ra1 {[%clk 0:00:29]} 40. Ra7 {[%clk 0:00:02]}  Kc5 {[%clk 0:00:25]} 41. Kc3 {[%clk 0:00:03]}  Ra3+ {[%clk 0:00:25]} 42. Kb2 {[%clk 0:00:03]}  Ra2+ {[%clk 0:00:25]} 43. Kc1 {[%clk 0:00:03]}  Kc4 {[%clk 0:00:25]} 44. a5 {[%clk 0:00:03]}  Kd3 {[%clk 0:00:25]} 45. Bb4 {[%clk 0:00:02]}  Bf5 {[%clk 0:00:19]} 46. Rxf7 {[%clk 0:00:01]}  Kc4 {[%clk 0:00:19]} 47. Bd2 {[%clk 0:00:01]}  Rc2+ {[%clk 0:00:17]} 48. Kd1 {[%clk 0:00:00]}  Kd3 {[%clk 0:00:17]} 0-1


[Site "https://www.chess.com"]

[Event "Titled Tuesday Blitz July 25 Early 2023"]
[White "Andreev, Konstantin"]
[Black "Amilal Munkhdalai"]
[WhiteFideId "24239305"]
[BlackFideId "4903250"]
[WhiteElo "2555"]
[BlackElo "2723"]
[Result "0-1"]
[Round "11"]
[TimeControl "180+2"]
[Date "2023.07.25"]
[WhiteClock "0:00:00"]
[BlackClock "0:00:18"]
[Board "45"]

1. e4 {[%clk 0:03:00]}  c5 {[%clk 0:03:00]} 2. Nf3 {[%clk 0:02:57]}  Nc6 {[%clk 0:03:00]} 3. Nc3 {[%clk 0:02:52]}  e6 {[%clk 0:02:59]} 4. d4 {[%clk 0:02:47]}  cxd4 {[%clk 0:02:59]} 5. Nxd4 {[%clk 0:02:48]}  Qc7 {[%clk 0:02:59]} 6. g4 {[%clk 0:02:48]}  Bb4 {[%clk 0:02:57]} 7. Nxc6 {[%clk 0:02:46]}  bxc6 {[%clk 0:02:56]} 8. Qd4 {[%clk 0:02:46]}  Bf8 {[%clk 0:02:56]} 9. h4 {[%clk 0:02:44]}  e5 {[%clk 0:02:56]} 10. Qd3 {[%clk 0:02:44]}  a5 {[%clk 0:02:55]} 11. Be3 {[%clk 0:02:43]}  Ba6 {[%clk 0:02:55]} 12. Qd2 {[%clk 0:02:44]}  Bxf1 {[%clk 0:02:54]} 13. Rxf1 {[%clk 0:02:45]}  Bb4 {[%clk 0:02:54]} 14. a3 {[%clk 0:02:45]}  Bxc3 {[%clk 0:02:53]} 15. Qxc3 {[%clk 0:02:46]}  Nf6 {[%clk 0:02:53]} 16. f3 {[%clk 0:02:44]}  d5 {[%clk 0:02:53]} 17. Bc5 {[%clk 0:02:29]}  d4 {[%clk 0:02:48]} 18. Qc4 {[%clk 0:02:25]}  Rb8 {[%clk 0:02:46]} 19. O-O-O {[%clk 0:02:24]}  Nd7 {[%clk 0:02:44]} 20. f4 {[%clk 0:02:22]}  Rb5 {[%clk 0:02:39]} 21. fxe5 {[%clk 0:02:04]}  Nxc5 {[%clk 0:02:39]} 22. a4 {[%clk 0:02:02]}  Nb3+ {[%clk 0:02:22]} 23. cxb3 {[%clk 0:01:57]}  Rxe5 {[%clk 0:02:21]} 24. Qxd4 {[%clk 0:01:50]}  O-O {[%clk 0:02:20]} 25. Rf5 {[%clk 0:01:47]}  Rxf5 {[%clk 0:02:18]} 26. exf5 {[%clk 0:01:47]}  Qg3 {[%clk 0:02:18]} 27. g5 {[%clk 0:01:40]}  Qxb3 {[%clk 0:02:17]} 28. f6 {[%clk 0:01:40]}  g6 {[%clk 0:02:17]} 29. h5 {[%clk 0:01:39]}  Qg3 {[%clk 0:02:14]} 30. Qc5 {[%clk 0:01:33]}  Rb8 {[%clk 0:02:02]} 31. hxg6 {[%clk 0:01:27]}  hxg6 {[%clk 0:02:01]} 32. Qxa5 {[%clk 0:01:02]}  Qf4+ {[%clk 0:01:32]} 33. Kb1 {[%clk 0:01:00]}  Qe4+ {[%clk 0:01:27]} 34. Ka1 {[%clk 0:00:59]}  Rb4 {[%clk 0:01:24]} 35. Qd8+ {[%clk 0:00:31]}  Kh7 {[%clk 0:01:24]} 36. Qd3 {[%clk 0:00:12]}  Rxa4+ {[%clk 0:01:17]} 37. Kb1 {[%clk 0:00:12]}  Qh4 {[%clk 0:00:44]} 38. Qb3 {[%clk 0:00:03]}  Rc4 {[%clk 0:00:31]} 39. Qd3 {[%clk 0:00:02]}  Rc5 {[%clk 0:00:26]} 40. Qd4 {[%clk 0:00:01]}  Qxd4 {[%clk 0:00:19]} 41. Rxd4 {[%clk 0:00:01]}  Rxg5 {[%clk 0:00:19]} 42. Rd7 {[%clk 0:00:02]}  Rf5 {[%clk 0:00:19]} 43. Rxf7+ {[%clk 0:00:02]}  Kh6 {[%clk 0:00:19]} 44. Rf8 {[%clk 0:00:01]}  g5 {[%clk 0:00:18]} 45. Kc2 {[%clk 0:00:02]}  Kg6 {[%clk 0:00:18]} 46. Kd3 {[%clk 0:00:01]}  Rxf6 {[%clk 0:00:18]} 47. Rg8+ {[%clk 0:00:00]}  Kf5 {[%clk 0:00:18]} 0-1


[Site "https://www.chess.com"]

[Event "Titled Tuesday Blitz July 25 Early 2023"]
[White "NikaVolkov"]
[Black "Salman, Pavel"]
[BlackFideId "24153753"]
[WhiteElo "2713"]
[BlackElo "2523"]
[Result "1-0"]
[Round "11"]
[TimeControl "180+2"]
[Date "2023.07.25"]
[WhiteClock "0:01:50"]
[BlackClock "0:00:15"]
[Board "48"]

1. d4 {[%clk 0:03:00]}  Nf6 {[%clk 0:02:59]} 2. Nf3 {[%clk 0:03:01]}  c5 {[%clk 0:02:59]} 3. e3 {[%clk 0:03:02]}  g6 {[%clk 0:02:59]} 4. c4 {[%clk 0:03:02]}  cxd4 {[%clk 0:02:58]} 5. exd4 {[%clk 0:03:03]}  d5 {[%clk 0:02:58]} 6. Nc3 {[%clk 0:03:04]}  Bg7 {[%clk 0:02:58]} 7. Be3 {[%clk 0:03:05]}  O-O {[%clk 0:02:58]} 8. Be2 {[%clk 0:03:05]}  Nc6 {[%clk 0:02:59]} 9. O-O {[%clk 0:03:06]}  dxc4 {[%clk 0:02:59]} 10. Bxc4 {[%clk 0:03:06]}  Bg4 {[%clk 0:03:00]} 11. h3 {[%clk 0:03:05]}  Bxf3 {[%clk 0:02:55]} 12. Qxf3 {[%clk 0:03:06]}  Nxd4 {[%clk 0:02:53]} 13. Qxb7 {[%clk 0:03:06]}  Nc2 {[%clk 0:02:32]} 14. Rad1 {[%clk 0:03:06]}  Qc8 {[%clk 0:02:32]} 15. Qxc8 {[%clk 0:03:07]}  Raxc8 {[%clk 0:02:31]} 16. Bb3 {[%clk 0:03:07]}  Nxe3 {[%clk 0:02:31]} 17. fxe3 {[%clk 0:03:08]}  e6 {[%clk 0:02:27]} 18. Rd6 {[%clk 0:03:06]}  Rfd8 {[%clk 0:02:22]} 19. Rfd1 {[%clk 0:03:06]}  Rxd6 {[%clk 0:02:21]} 20. Rxd6 {[%clk 0:03:07]}  h5 {[%clk 0:02:13]} 21. Ra6 {[%clk 0:03:05]}  Rc7 {[%clk 0:02:08]} 22. Kf2 {[%clk 0:03:04]}  Rd7 {[%clk 0:01:59]} 23. Ke2 {[%clk 0:03:04]}  h4 {[%clk 0:01:58]} 24. Nb5 {[%clk 0:03:02]}  Ne4 {[%clk 0:01:58]} 25. Nd4 {[%clk 0:02:44]}  Nc5 {[%clk 0:01:45]} 26. Ra5 {[%clk 0:02:21]}  Bxd4 {[%clk 0:01:44]} 27. exd4 {[%clk 0:02:22]}  Nxb3 {[%clk 0:01:44]} 28. axb3 {[%clk 0:02:23]}  Rxd4 {[%clk 0:01:44]} 29. Rxa7 {[%clk 0:02:23]}  Rb4 {[%clk 0:01:41]} 30. Ra3 {[%clk 0:02:23]}  e5 {[%clk 0:01:41]} 31. Kd3 {[%clk 0:02:22]}  f5 {[%clk 0:01:35]} 32. Kc3 {[%clk 0:02:19]}  Rb7 {[%clk 0:01:35]} 33. Ra4 {[%clk 0:02:17]}  e4 {[%clk 0:01:34]} 34. Rc4 {[%clk 0:02:15]}  Kf7 {[%clk 0:01:34]} 35. b4 {[%clk 0:02:16]}  Kf6 {[%clk 0:01:33]} 36. Kd4 {[%clk 0:02:14]}  Kg5 {[%clk 0:01:31]} 37. Ke3 {[%clk 0:02:14]}  Rb6 {[%clk 0:01:25]} 38. b3 {[%clk 0:02:12]}  Kf6 {[%clk 0:01:25]} 39. Kf4 {[%clk 0:02:09]}  g5+ {[%clk 0:01:24]} 40. Ke3 {[%clk 0:02:10]}  Ke6 {[%clk 0:01:21]} 41. Kd4 {[%clk 0:02:08]}  Kd6 {[%clk 0:01:15]} 42. Ke3 {[%clk 0:02:07]}  Rb5 {[%clk 0:01:10]} 43. Rd4+ {[%clk 0:02:06]}  Ke5 {[%clk 0:01:09]} 44. Rc4 {[%clk 0:02:07]}  f4+ {[%clk 0:01:09]} 45. Ke2 {[%clk 0:02:07]}  Kd5 {[%clk 0:00:44]} 46. Kf2 {[%clk 0:02:06]}  Rb8 {[%clk 0:00:35]} 47. Ke2 {[%clk 0:02:05]}  Ra8 {[%clk 0:00:34]} 48. Rc5+ {[%clk 0:02:05]}  Kd4 {[%clk 0:00:35]} 49. Rc4+ {[%clk 0:02:06]}  Ke5 {[%clk 0:00:33]} 50. Rc5+ {[%clk 0:02:06]}  Kf6 {[%clk 0:00:33]} 51. Rc2 {[%clk 0:02:06]}  Rb8 {[%clk 0:00:27]} 52. Rc6+ {[%clk 0:02:06]}  Kf5 {[%clk 0:00:28]} 53. Rc5+ {[%clk 0:02:06]}  Kf6 {[%clk 0:00:28]} 54. Rc6+ {[%clk 0:02:07]}  Ke5 {[%clk 0:00:28]} 55. Rc5+ {[%clk 0:02:07]}  Kd4 {[%clk 0:00:28]} 56. Rc4+ {[%clk 0:02:07]}  Kd5 {[%clk 0:00:29]} 57. Rc5+ {[%clk 0:02:07]}  Kd6 {[%clk 0:00:29]} 58. Rc4 {[%clk 0:02:07]}  Rb5 {[%clk 0:00:29]} 59. Rxe4 {[%clk 0:02:07]}  Kd5 {[%clk 0:00:26]} 60. Kf3 {[%clk 0:02:07]}  Rb8 {[%clk 0:00:24]} 61. Rc4 {[%clk 0:02:07]}  Re8 {[%clk 0:00:24]} 62. Rc5+ {[%clk 0:02:07]}  Kd4 {[%clk 0:00:24]} 63. Rxg5 {[%clk 0:02:08]}  Re3+ {[%clk 0:00:24]} 64. Kxf4 {[%clk 0:02:08]}  Rxb3 {[%clk 0:00:25]} 65. Kg4 {[%clk 0:02:09]}  Rxb4 {[%clk 0:00:24]} 66. Kxh4 {[%clk 0:02:09]}  Ke3+ {[%clk 0:00:24]} 67. Kh5 {[%clk 0:02:09]}  Kf2 {[%clk 0:00:22]} 68. g4 {[%clk 0:02:09]}  Kg3 {[%clk 0:00:23]} 69. h4 {[%clk 0:02:10]}  Rb6 {[%clk 0:00:23]} 70. Ra5 {[%clk 0:02:09]}  Kf4 {[%clk 0:00:21]} 71. g5 {[%clk 0:02:09]}  Rb1 {[%clk 0:00:21]} 72. Kh6 {[%clk 0:02:06]}  Rb8 {[%clk 0:00:19]} 73. h5 {[%clk 0:02:02]}  Rh8+ {[%clk 0:00:18]} 74. Kg6 {[%clk 0:01:56]}  Rg8+ {[%clk 0:00:18]} 75. Kf6 {[%clk 0:01:54]}  Rh8 {[%clk 0:00:17]} 76. h6 {[%clk 0:01:54]}  Kg4 {[%clk 0:00:18]} 77. Kg7 {[%clk 0:01:53]}  Ra8 {[%clk 0:00:15]} 78. Rxa8 {[%clk 0:01:50]} 1-0


[Site "https://www.chess.com"]

[Event "Titled Tuesday Blitz July 25 Early 2023"]
[White "Marek, Matyas"]
[Black "Ginzburg, Yakov"]
[WhiteFideId "335398"]
[BlackFideId "4157176"]
[WhiteElo "2707"]
[BlackElo "2519"]
[Result "0-1"]
[Round "11"]
[TimeControl "180+2"]
[Date "2023.07.25"]
[WhiteClock "0:00:12"]
[BlackClock "0:00:08"]
[Board "49"]

1. Nf3 {[%clk 0:02:59]}  Nf6 {[%clk 0:02:56]} 2. g3 {[%clk 0:03:00]}  g6 {[%clk 0:02:57]} 3. Bg2 {[%clk 0:03:00]}  Bg7 {[%clk 0:02:57]} 4. O-O {[%clk 0:03:01]}  O-O {[%clk 0:02:57]} 5. d3 {[%clk 0:03:02]}  d5 {[%clk 0:02:57]} 6. Nbd2 {[%clk 0:03:03]}  Bg4 {[%clk 0:02:54]} 7. h3 {[%clk 0:03:02]}  Bxf3 {[%clk 0:02:54]} 8. Bxf3 {[%clk 0:03:02]}  Nbd7 {[%clk 0:02:53]} 9. e4 {[%clk 0:03:02]}  e6 {[%clk 0:02:53]} 10. Bg2 {[%clk 0:03:02]}  c6 {[%clk 0:02:52]} 11. Qe2 {[%clk 0:03:00]}  Re8 {[%clk 0:02:48]} 12. Nf3 {[%clk 0:02:53]}  dxe4 {[%clk 0:02:39]} 13. dxe4 {[%clk 0:02:54]}  Nc5 {[%clk 0:02:38]} 14. e5 {[%clk 0:02:39]}  Nd5 {[%clk 0:02:37]} 15. a3 {[%clk 0:02:35]}  a5 {[%clk 0:02:36]} 16. c4 {[%clk 0:02:34]}  Nb6 {[%clk 0:02:34]} 17. Rd1 {[%clk 0:02:34]}  Qc7 {[%clk 0:02:31]} 18. Bf4 {[%clk 0:02:26]}  Nb3 {[%clk 0:02:26]} 19. Rab1 {[%clk 0:02:25]}  Rad8 {[%clk 0:02:23]} 20. h4 {[%clk 0:02:23]}  a4 {[%clk 0:02:17]} 21. h5 {[%clk 0:02:22]}  Rxd1+ {[%clk 0:02:17]} 22. Rxd1 {[%clk 0:02:22]}  Rd8 {[%clk 0:02:17]} 23. h6 {[%clk 0:02:15]}  Bf8 {[%clk 0:02:11]} 24. Bf1 {[%clk 0:02:15]}  Be7 {[%clk 0:02:02]} 25. Bg5 {[%clk 0:02:07]}  Nc8 {[%clk 0:01:25]} 26. Bxe7 {[%clk 0:01:56]}  Qxe7 {[%clk 0:01:25]} 27. Rxd8+ {[%clk 0:01:25]}  Qxd8 {[%clk 0:01:23]} 28. Qe3 {[%clk 0:01:26]}  c5 {[%clk 0:01:20]} 29. Ng5 {[%clk 0:01:19]}  Nd4 {[%clk 0:01:16]} 30. Ne4 {[%clk 0:01:09]}  Ne7 {[%clk 0:01:06]} 31. Nxc5 {[%clk 0:00:47]}  Nef5 {[%clk 0:01:01]} 32. Qe4 {[%clk 0:00:47]}  Qg5 {[%clk 0:00:47]} 33. Nd3 {[%clk 0:00:36]}  Qxh6 {[%clk 0:00:35]} 34. Qxb7 {[%clk 0:00:24]}  Qg5 {[%clk 0:00:18]} 35. Qe4 {[%clk 0:00:24]}  h5 {[%clk 0:00:17]} 36. Qf4 {[%clk 0:00:23]}  Qd8 {[%clk 0:00:12]} 37. c5 {[%clk 0:00:23]}  Qd5 {[%clk 0:00:10]} 38. Ne1 {[%clk 0:00:15]}  Qxc5 {[%clk 0:00:10]} 39. Bd3 {[%clk 0:00:13]}  Qd5 {[%clk 0:00:09]} 40. Kf1 {[%clk 0:00:12]}  Qh1# {[%clk 0:00:08]} 0-1


[Site "https://www.chess.com"]

[Event "Titled Tuesday Blitz July 25 Early 2023"]
[White "Lopez, Henry"]
[Black "Koellner, Ruben Gideon"]
[WhiteFideId "5203830"]
[BlackFideId "12993093"]
[WhiteElo "2518"]
[BlackElo "2707"]
[Result "0-1"]
[Round "11"]
[TimeControl "180+2"]
[Date "2023.07.25"]
[WhiteClock "0:00:44"]
[BlackClock "0:01:28"]
[Board "50"]

1. d4 {[%clk 0:03:00]}  d6 {[%clk 0:03:00]} 2. Nf3 {[%clk 0:02:59]}  Nf6 {[%clk 0:03:00]} 3. c4 {[%clk 0:02:58]}  g6 {[%clk 0:03:00]} 4. Nc3 {[%clk 0:02:58]}  Bf5 {[%clk 0:03:00]} 5. Qb3 {[%clk 0:02:56]}  b6 {[%clk 0:03:00]} 6. g3 {[%clk 0:02:56]}  c5 {[%clk 0:03:00]} 7. Bg2 {[%clk 0:02:55]}  Nc6 {[%clk 0:03:01]} 8. dxc5 {[%clk 0:02:44]}  bxc5 {[%clk 0:03:00]} 9. O-O {[%clk 0:02:43]}  Rc8 {[%clk 0:02:55]} 10. Qd1 {[%clk 0:02:40]}  Bg7 {[%clk 0:02:55]} 11. Re1 {[%clk 0:02:16]}  O-O {[%clk 0:02:54]} 12. e4 {[%clk 0:02:15]}  Be6 {[%clk 0:02:52]} 13. Nd5 {[%clk 0:02:14]}  Rb8 {[%clk 0:02:47]} 14. Rb1 {[%clk 0:02:11]}  Nb4 {[%clk 0:02:41]} 15. a3 {[%clk 0:02:09]}  Nbxd5 {[%clk 0:02:40]} 16. cxd5 {[%clk 0:02:08]}  Bg4 {[%clk 0:02:37]} 17. h3 {[%clk 0:02:05]}  Bxf3 {[%clk 0:02:37]} 18. Bxf3 {[%clk 0:02:04]}  Nd7 {[%clk 0:02:37]} 19. Qc2 {[%clk 0:02:03]}  Qa5 {[%clk 0:02:36]} 20. Bd2 {[%clk 0:02:01]}  Qb5 {[%clk 0:02:36]} 21. b3 {[%clk 0:02:01]}  Qa6 {[%clk 0:02:33]} 22. a4 {[%clk 0:02:00]}  Rb7 {[%clk 0:02:25]} 23. Be2 {[%clk 0:01:59]}  Qb6 {[%clk 0:02:26]} 24. Kg2 {[%clk 0:01:57]}  Rfb8 {[%clk 0:02:26]} 25. f4 {[%clk 0:01:55]}  Qc7 {[%clk 0:02:24]} 26. Ba6 {[%clk 0:01:52]}  Rb6 {[%clk 0:02:21]} 27. Ba5 {[%clk 0:01:52]}  Bd4 {[%clk 0:02:16]} 28. Bxb6 {[%clk 0:01:51]}  Qxb6 {[%clk 0:02:17]} 29. Bc4 {[%clk 0:01:50]}  a5 {[%clk 0:02:15]} 30. Qe2 {[%clk 0:01:44]}  Qb4 {[%clk 0:02:15]} 31. Bb5 {[%clk 0:01:38]}  Nf6 {[%clk 0:02:15]} 32. Qf3 {[%clk 0:01:37]}  Qc3 {[%clk 0:02:13]} 33. Re2 {[%clk 0:01:32]}  Qxf3+ {[%clk 0:02:10]} 34. Kxf3 {[%clk 0:01:32]}  Kf8 {[%clk 0:02:09]} 35. Rd1 {[%clk 0:01:31]}  Rc8 {[%clk 0:02:05]} 36. g4 {[%clk 0:01:31]}  h6 {[%clk 0:02:04]} 37. h4 {[%clk 0:01:29]}  g5 {[%clk 0:02:03]} 38. Bc4 {[%clk 0:01:15]}  gxf4 {[%clk 0:02:02]} 39. Kxf4 {[%clk 0:01:14]}  Be5+ {[%clk 0:02:02]} 40. Kf3 {[%clk 0:01:14]}  Kg7 {[%clk 0:02:02]} 41. g5 {[%clk 0:01:14]}  hxg5 {[%clk 0:02:02]} 42. hxg5 {[%clk 0:01:14]}  Nh7 {[%clk 0:02:00]} 43. Rg2 {[%clk 0:01:10]}  Nf8 {[%clk 0:01:57]} 44. Rh1 {[%clk 0:01:08]}  Ng6 {[%clk 0:01:57]} 45. Rg4 {[%clk 0:01:07]}  Rb8 {[%clk 0:01:56]} 46. Ke2 {[%clk 0:01:06]}  Bd4 {[%clk 0:01:50]} 47. Bb5 {[%clk 0:01:03]}  Be5 {[%clk 0:01:42]} 48. Kf3 {[%clk 0:01:01]}  Rb7 {[%clk 0:01:39]} 49. Ke2 {[%clk 0:01:01]}  Rb8 {[%clk 0:01:35]} 50. Kd3 {[%clk 0:00:58]}  Rh8 {[%clk 0:01:34]} 51. Rxh8 {[%clk 0:00:56]}  Nxh8 {[%clk 0:01:35]} 52. Kc4 {[%clk 0:00:55]}  Ng6 {[%clk 0:01:32]} 53. Ba6 {[%clk 0:00:49]}  Bd4 {[%clk 0:01:29]} 54. Kb5 {[%clk 0:00:49]}  Bc3 {[%clk 0:01:29]} 55. Kc6 {[%clk 0:00:44]}  Ne5+ {[%clk 0:01:28]} 0-1


[Site "https://www.chess.com"]

[Event "Titled Tuesday Blitz July 25 Early 2023"]
[White "Djokic, Mihailo"]
[Black "Padmini, Rout"]
[WhiteFideId "976440"]
[BlackFideId "5029295"]
[WhiteElo "2695"]
[BlackElo "2487"]
[Result "1-0"]
[Round "11"]
[TimeControl "180+2"]
[Date "2023.07.25"]
[WhiteClock "0:02:36"]
[BlackClock "0:00:00"]
[Board "52"]

1. e4 {[%clk 0:03:00]}  c5 {[%clk 0:02:59]} 2. Nf3 {[%clk 0:03:01]}  Nc6 {[%clk 0:02:59]} 3. d4 {[%clk 0:03:01]}  cxd4 {[%clk 0:03:00]} 4. Nxd4 {[%clk 0:03:02]}  Nf6 {[%clk 0:03:00]} 5. Nc3 {[%clk 0:03:03]}  e5 {[%clk 0:03:01]} 6. Ndb5 {[%clk 0:03:03]}  d6 {[%clk 0:03:01]} 7. Bg5 {[%clk 0:03:04]}  a6 {[%clk 0:03:01]} 8. Bxf6 {[%clk 0:03:05]}  gxf6 {[%clk 0:03:01]} 9. Na3 {[%clk 0:03:06]}  b5 {[%clk 0:03:01]} 10. Nd5 {[%clk 0:03:07]}  f5 {[%clk 0:03:01]} 11. c3 {[%clk 0:03:06]}  Bg7 {[%clk 0:03:00]} 12. exf5 {[%clk 0:03:07]}  Bxf5 {[%clk 0:02:59]} 13. Nc2 {[%clk 0:03:08]}  O-O {[%clk 0:02:58]} 14. Nce3 {[%clk 0:03:08]}  Be6 {[%clk 0:02:58]} 15. Bd3 {[%clk 0:03:09]}  f5 {[%clk 0:02:49]} 16. Qh5 {[%clk 0:03:09]}  e4 {[%clk 0:02:48]} 17. Bc2 {[%clk 0:03:09]}  Ne7 {[%clk 0:02:33]} 18. Rd1 {[%clk 0:03:08]}  Ra7 {[%clk 0:02:05]} 19. Bb3 {[%clk 0:03:06]}  Ng6 {[%clk 0:01:58]} 20. f4 {[%clk 0:02:57]}  exf3 {[%clk 0:01:48]} 21. Qxf3 {[%clk 0:02:53]}  f4 {[%clk 0:01:47]} 22. Nc2 {[%clk 0:02:50]}  Ne5 {[%clk 0:01:36]} 23. Qf2 {[%clk 0:02:50]}  Ng4 {[%clk 0:01:33]} 24. Qxa7 {[%clk 0:02:49]}  Qh4+ {[%clk 0:01:27]} 25. Kd2 {[%clk 0:02:49]}  f3 {[%clk 0:01:01]} 26. gxf3 {[%clk 0:02:49]}  Bh6+ {[%clk 0:00:55]} 27. f4 {[%clk 0:02:48]}  Kh8 {[%clk 0:00:53]} 28. Kc1 {[%clk 0:02:44]}  Nf2 {[%clk 0:00:49]} 29. Kb1 {[%clk 0:02:44]}  Nxd1 {[%clk 0:00:41]} 30. Rxd1 {[%clk 0:02:43]}  Bf5 {[%clk 0:00:33]} 31. Ka1 {[%clk 0:02:41]}  Bg4 {[%clk 0:00:25]} 32. Rg1 {[%clk 0:02:36]}  Bf5 {[%clk 0:00:00]} 33. Qd4+ {[%clk 0:02:36]} 1-0


[Site "https://www.chess.com"]